{"text_format":"1","workbook":"xlsx","n_sheets":13,"sheets":["UPTbankzeit.de","01","02","03","04","05","06","07","08","09","10","11","12"],"not_rendered":{"charts":0,"images":20,"macros":1,"external_links":2,"defined_names":19,"comments":0,"pivot_tables":0},"unopened":[],"bounds":{"document_bytes":16777216,"sheet_cells":100000,"rows_first":2000,"rows_last":500,"rows_between":2000,"halvings":0,"cell_chars":16384,"cell_head_chars":4096},"cells_cut":0,"cells_raw":0,"read":"whole","date_system":"1900"}

{"sheet":"UPTbankzeit.de","index":0,"n_rows":40,"n_cols":58,"rows_kept":40,"cut":false,"hidden":false,"merged":[[39,47,40,50],[39,52,40,55],[39,57,40,60],[39,32,40,35],[39,37,40,40],[39,42,40,45],[39,17,40,20],[39,22,40,25],[39,27,40,30],[39,2,40,5],[39,7,40,10],[39,12,40,15],[14,39,15,60],[10,39,11,60],[14,3,37,14],[18,39,18,48],[41,37,41,38],[20,39,20,48],[22,39,22,48],[24,39,24,48],[26,39,26,48],[28,39,28,48],[30,39,30,48],[32,39,32,48],[34,39,34,48],[36,39,36,48],[18,51,18,60],[20,51,20,60],[22,51,22,60],[24,51,24,60],[26,51,26,60],[35,19,36,32],[32,19,34,33],[28,51,28,60],[30,51,30,60],[32,51,32,60],[34,51,34,60],[36,51,36,60]]}
[]
[]
[]
[]
[]
[]
[]
[]
[]
[]
[null,null,null,null,null,null,null,null,null,null,null,null,null,null,null,null,null,null,null,null,null,null,null,null,null,null,null,null,null,null,null,null,null,null,null,null,null,null,null,2026]
[]
[]
[]
[null,null,null,"Vielen Dank für die Nutzung dieses kleinen Excel-Tools zur Unterstützung bei der Urlaubsplanung und der Abstimmung im Team.\n\nTrotz jahrzehntelanger Erfahrung und größtmöglicher Sorgfalt, kann bei diesem kleinen kosten- und werbefreien Tool natürlich keinerlei Haftung für Vollständigkeit, Richtigkeit, Fehlerfreiheit und Aktualität übernommen werden. ",null,null,null,null,null,null,null,null,null,null,null,null,null,null,null,null,null,null,null,null,null,null,null,null,null,null,null,null,null,null,null,null,null,null,null,"Bitte Teamnamen eingeben"]
[]
[]
[]
[null,null,null,null,null,null,null,null,null,null,null,null,null,null,null,null,null,null,null,null,null,null,null,null,null,null,null,null,null,null,null,null,null,null,null,null,null,null,1,"Urlaubsreif, Trude",null,null,null,null,null,null,null,null,null,null,11]
[]
[null,null,null,null,null,null,null,null,null,null,null,null,null,null,null,null,null,null,null,null,null,null,null,null,null,null,null,null,null,null,null,null,null,null,null,null,null,null,2,null,null,null,null,null,null,null,null,null,null,null,12]
[]
[null,null,null,null,null,null,null,null,null,null,null,null,null,null,null,null,null,null,null,null,null,null,null,null,null,null,null,null,null,null,null,null,null,null,null,null,null,null,3,null,null,null,null,null,null,null,null,null,null,null,13]
[]
[null,null,null,null,null,null,null,null,null,null,null,null,null,null,null,null,null,null,null,null,null,null,null,null,null,null,null,null,null,null,null,null,null,null,null,null,null,null,4,null,null,null,null,null,null,null,null,null,null,null,14]
[]
[null,null,null,null,null,null,null,null,null,null,null,null,null,null,null,null,null,null,null,null,null,null,null,null,null,null,null,null,null,null,null,null,null,null,null,null,null,null,5,null,null,null,null,null,null,null,null,null,null,null,15]
[]
[null,null,null,null,null,null,null,null,null,null,null,null,null,null,null,null,null,null,null,null,null,null,null,null,null,null,null,null,null,null,null,null,null,null,null,null,null,null,6,null,null,null,null,null,null,null,null,null,null,null,16]
[]
[null,null,null,null,null,null,null,null,null,null,null,null,null,null,null,null,null,null,null,null,null,null,null,null,null,null,null,null,null,null,null,null,null,null,null,null,null,null,7,null,null,null,null,null,null,null,null,null,null,null,17]
[]
[null,null,null,null,null,null,null,null,null,null,null,null,null,null,null,null,null,null,null,"Version 1.2",null,null,null,null,null,null,null,null,null,null,null,null,null,null,null,null,null,null,8,null,null,null,null,null,null,null,null,null,null,null,18]
[]
[null,null,null,null,null,null,null,null,null,null,null,null,null,null,null,null,null,null,null,null,null,null,null,null,null,null,null,null,null,null,null,null,null,null,null,null,null,null,9,null,null,null,null,null,null,null,null,null,null,null,19]
[null,null,null,null,null,null,null,null,null,null,null,null,null,null,null,null,null,null,null,"Erstellt 09.2024"]
[null,null,null,null,null,null,null,null,null,null,null,null,null,null,null,null,null,null,null,null,null,null,null,null,null,null,null,null,null,null,null,null,null,null,null,null,null,null,10,null,null,null,null,null,null,null,null,null,null,null,20]
[null,null,null,null,null,null,null,null,null,null,null,null,null,null,null,null,null,null,null,"www.bankzeit.de | info@bankzeit.de"]
[]
[null,null,"JAN",null,null,null,null,"FEB",null,null,null,null,"MÄR",null,null,null,null,"APR",null,null,null,null,"MAI",null,null,null,null,"JUN",null,null,null,null,"JUL",null,null,null,null,"AUG",null,null,null,null,"SEP",null,null,null,null,"OKT",null,null,null,null,"NOV",null,null,null,null,"DEZ"]

{"sheet":"01","index":1,"n_rows":33,"n_cols":44,"rows_kept":33,"cut":false,"hidden":false,"merged":[[9,3,9,10],[1,10,2,14],[1,1,2,9],[7,6,8,10],[1,32,2,36],[1,27,2,31],[1,22,2,26],[10,3,10,10],[4,1,32,2],[11,3,11,10],[12,3,12,10],[13,3,13,10],[14,3,14,10],[15,3,15,10],[25,3,25,10],[26,3,26,10],[27,3,27,10],[28,3,28,10],[17,3,17,10],[18,3,18,10],[19,3,19,10],[20,3,20,10],[21,3,21,10],[22,3,22,10],[13,43,14,44],[15,43,16,44],[17,43,18,44],[23,3,23,10],[24,3,24,10],[16,3,16,10],[31,43,32,44],[4,17,6,41],[4,12,6,15],[4,4,6,11],[19,43,20,44],[21,43,22,44],[23,43,24,44],[25,43,26,44],[27,43,28,44],[29,43,30,44],[29,3,29,10],[30,3,30,10],[31,3,31,10],[32,3,32,10],[9,43,10,44],[11,43,12,44],[1,18,2,19],[1,20,2,21],[1,15,2,17],[1,43,2,44],[3,43,8,44],[1,37,2,42]]}
[]
[null,null,null,null,null,null,null,null,null,null,null,null,null,null,null,null,null,null,null,null,null,null,"sonstiges",null,null,null,null,"Seminar",null,null,null,null,"V A Z",null,null,null,null,"Urlaub"]
[]
[]
[null,null,null,null,"Januar",null,null,null,null,null,null,null,{"$f":"UPTbankzeit.de!AN11","v":2026},null,null,null,null,{"$f":"IF(UPTbankzeit.de!AN15=\"\",\"\",UPTbankzeit.de!AN15)","v":"Bitte Teamnamen eingeben"}]
[]
[]
[null,null,null,null,null,null,"Name",null,null,null,null,1,2,3,4,5,6,7,8,9,10,11,12,13,14,15,16,17,18,19,20,21,22,23,24,25,26,27,28,29,30,31]
[null,null,null,null,null,null,null,null,null,null,null,"Do","Fr","Sa","So","Mo","Di","Mi","Do","Fr","Sa","So","Mo","Di","Mi","Do","Fr","Sa","So","Mo","Di","Mi","Do","Fr","Sa","So","Mo","Di","Mi","Do","Fr","Sa"]
[null,null,null,{"$f":"IF(UPTbankzeit.de!AN19=\"\",\"\",UPTbankzeit.de!AN19)","v":"Urlaubsreif, Trude"},null,null,null,null,null,null,null,null,null,null,null,null,null,null,null,null,null,null,null,null,null,null,null,null,null,null,null,null,null,null,null,null,null,null,null,null,null,null,null,1]
[null,null,null,{"$f":"IF(UPTbankzeit.de!AN21=\"\",\"\",UPTbankzeit.de!AN21)","v":""}]
[null,null,null,{"$f":"IF(UPTbankzeit.de!AN23=\"\",\"\",UPTbankzeit.de!AN23)","v":""},null,null,null,null,null,null,null,null,null,null,null,null,null,null,null,null,null,null,null,null,null,null,null,null,null,null,null,null,null,null,null,null,null,null,null,null,null,null,null,2]
[null,null,null,{"$f":"IF(UPTbankzeit.de!AN25=\"\",\"\",UPTbankzeit.de!AN25)","v":""}]
[null,null,null,{"$f":"IF(UPTbankzeit.de!AN27=\"\",\"\",UPTbankzeit.de!AN27)","v":""},null,null,null,null,null,null,null,null,null,null,null,null,null,null,null,null,null,null,null,null,null,null,null,null,null,null,null,null,null,null,null,null,null,null,null,null,null,null,null,3]
[null,null,null,{"$f":"IF(UPTbankzeit.de!AN29=\"\",\"\",UPTbankzeit.de!AN29)","v":""}]
[null,null,null,{"$f":"IF(UPTbankzeit.de!AN31=\"\",\"\",UPTbankzeit.de!AN31)","v":""},null,null,null,null,null,null,null,null,null,null,null,null,null,null,null,null,null,null,null,null,null,null,null,null,null,null,null,null,null,null,null,null,null,null,null,null,null,null,null,4]
[null,null,null,{"$f":"IF(UPTbankzeit.de!AN33=\"\",\"\",UPTbankzeit.de!AN33)","v":""}]
[null,null,null,{"$f":"IF(UPTbankzeit.de!AN35=\"\",\"\",UPTbankzeit.de!AN35)","v":""},null,null,null,null,null,null,null,null,null,null,null,null,null,null,null,null,null,null,null,null,null,null,null,null,null,null,null,null,null,null,null,null,null,null,null,null,null,null,null,5]
[null,null,null,{"$f":"IF(UPTbankzeit.de!AN37=\"\",\"\",UPTbankzeit.de!AN37)","v":""}]
[null,null,null,{"$f":"IF(UPTbankzeit.de!AZ19=\"\",\"\",UPTbankzeit.de!AZ19)","v":""},null,null,null,null,null,null,null,null,null,null,null,null,null,null,null,null,null,null,null,null,null,null,null,null,null,null,null,null,null,null,null,null,null,null,null,null,null,null,null,6]
[null,null,null,{"$f":"IF(UPTbankzeit.de!AZ21=\"\",\"\",UPTbankzeit.de!AZ21)","v":""}]
[null,null,null,{"$f":"IF(UPTbankzeit.de!AZ23=\"\",\"\",UPTbankzeit.de!AZ23)","v":""},null,null,null,null,null,null,null,null,null,null,null,null,null,null,null,null,null,null,null,null,null,null,null,null,null,null,null,null,null,null,null,null,null,null,null,null,null,null,null,7]
[null,null,null,{"$f":"IF(UPTbankzeit.de!AZ25=\"\",\"\",UPTbankzeit.de!AZ25)","v":""}]
[null,null,null,{"$f":"IF(UPTbankzeit.de!AZ27=\"\",\"\",UPTbankzeit.de!AZ27)","v":""},null,null,null,null,null,null,null,null,null,null,null,null,null,null,null,null,null,null,null,null,null,null,null,null,null,null,null,null,null,null,null,null,null,null,null,null,null,null,null,8]
[null,null,null,{"$f":"IF(UPTbankzeit.de!AZ29=\"\",\"\",UPTbankzeit.de!AZ29)","v":""}]
[null,null,null,{"$f":"IF(UPTbankzeit.de!AZ31=\"\",\"\",UPTbankzeit.de!AZ31)","v":""},null,null,null,null,null,null,null,null,null,null,null,null,null,null,null,null,null,null,null,null,null,null,null,null,null,null,null,null,null,null,null,null,null,null,null,null,null,null,null,9]
[null,null,null,{"$f":"IF(UPTbankzeit.de!AZ33=\"\",\"\",UPTbankzeit.de!AZ33)","v":""}]
[null,null,null,{"$f":"IF(UPTbankzeit.de!AZ35=\"\",\"\",UPTbankzeit.de!AZ35)","v":""},null,null,null,null,null,null,null,null,null,null,null,null,null,null,null,null,null,null,null,null,null,null,null,null,null,null,null,null,null,null,null,null,null,null,null,null,null,null,null,10]
[null,null,null,{"$f":"IF(UPTbankzeit.de!AZ37=\"\",\"\",UPTbankzeit.de!AZ37)","v":""}]
[null,null,null,"Ferien NDS | HB",null,null,null,null,null,null,null,null,null,null,null,null,null,null,null,null,null,null,null,null,null,null,null,null,null,null,null,null,null,null,null,null,null,null,null,null,null,null,null,11]
[null,null,null,"Ferien HH"]
[null,null,null,"Ferien SH",null,null,null,null,null,null,null,null,null,null,null,null,null,null,null,null,null,null,null,null,null,null,null,null,null,null,null,null,null,null,null,null,null,null,null,null,null,null,null,12]
[null,null,null,"Ferien NRW"]

{"sheet":"02","index":2,"n_rows":33,"n_cols":44,"rows_kept":33,"cut":false,"hidden":false,"merged":[[1,22,2,26],[1,1,2,9],[1,10,2,14],[1,15,2,17],[1,18,2,19],[1,20,2,21],[4,1,32,2],[4,4,6,11],[4,12,6,15],[4,17,6,41],[7,6,8,10],[9,3,9,10],[13,3,13,10],[17,3,17,10],[21,3,21,10],[25,3,25,10],[29,3,29,10],[1,27,2,31],[1,32,2,36],[1,37,2,42],[1,43,2,44],[3,43,8,44],[9,43,10,44],[10,3,10,10],[11,3,11,10],[11,43,12,44],[12,3,12,10],[13,43,14,44],[14,3,14,10],[15,3,15,10],[15,43,16,44],[16,3,16,10],[17,43,18,44],[18,3,18,10],[19,3,19,10],[19,43,20,44],[20,3,20,10],[21,43,22,44],[22,3,22,10],[23,3,23,10],[23,43,24,44],[24,3,24,10],[25,43,26,44],[26,3,26,10],[27,3,27,10],[27,43,28,44],[28,3,28,10],[29,43,30,44],[30,3,30,10],[31,3,31,10],[31,43,32,44],[32,3,32,10]]}
[]
[null,null,null,null,null,null,null,null,null,null,null,null,null,null,null,null,null,null,null,null,null,null,"sonstiges",null,null,null,null,"Seminar",null,null,null,null,"V A Z",null,null,null,null,"Urlaub"]
[]
[]
[null,null,null,null,"Februar",null,null,null,null,null,null,null,{"$f":"UPTbankzeit.de!AN11","v":2026},null,null,null,null,{"$f":"IF(UPTbankzeit.de!AN15=\"\",\"\",UPTbankzeit.de!AN15)","v":"Bitte Teamnamen eingeben"}]
[]
[]
[null,null,null,null,null,null,"Name",null,null,null,null,1,2,3,4,5,6,7,8,9,10,11,12,13,14,15,16,17,18,19,20,21,22,23,24,25,26,27,28]
[null,null,null,null,null,null,null,null,null,null,null,"So","Mo","Di","Mi","Do","Fr","Sa","So","Mo","Di","Mi","Do","Fr","Sa","So","Mo","Di","Mi","Do","Fr","Sa","So","Mo","Di","Mi","Do","Fr","Sa"]
[null,null,null,{"$f":"'01'!D10:K10","v":"Urlaubsreif, Trude"},null,null,null,null,null,null,null,null,null,null,null,null,null,null,null,null,null,null,null,null,null,null,null,null,null,null,null,null,null,null,null,null,null,null,null,null,null,null,null,1]
[null,null,null,{"$f":"'01'!D11:K11","v":""}]
[null,null,null,{"$f":"'01'!D12:K12","v":""},null,null,null,null,null,null,null,null,null,null,null,null,null,null,null,null,null,null,null,null,null,null,null,null,null,null,null,null,null,null,null,null,null,null,null,null,null,null,null,2]
[null,null,null,{"$f":"'01'!D13:K13","v":""}]
[null,null,null,{"$f":"'01'!D14:K14","v":""},null,null,null,null,null,null,null,null,null,null,null,null,null,null,null,null,null,null,null,null,null,null,null,null,null,null,null,null,null,null,null,null,null,null,null,null,null,null,null,3]
[null,null,null,{"$f":"'01'!D15:K15","v":""}]
[null,null,null,{"$f":"'01'!D16:K16","v":""},null,null,null,null,null,null,null,null,null,null,null,null,null,null,null,null,null,null,null,null,null,null,null,null,null,null,null,null,null,null,null,null,null,null,null,null,null,null,null,4]
[null,null,null,{"$f":"'01'!D17:K17","v":""}]
[null,null,null,{"$f":"'01'!D18:K18","v":""},null,null,null,null,null,null,null,null,null,null,null,null,null,null,null,null,null,null,null,null,null,null,null,null,null,null,null,null,null,null,null,null,null,null,null,null,null,null,null,5]
[null,null,null,{"$f":"'01'!D19:K19","v":""}]
[null,null,null,{"$f":"'01'!D20:K20","v":""},null,null,null,null,null,null,null,null,null,null,null,null,null,null,null,null,null,null,null,null,null,null,null,null,null,null,null,null,null,null,null,null,null,null,null,null,null,null,null,6]
[null,null,null,{"$f":"'01'!D21:K21","v":""}]
[null,null,null,{"$f":"'01'!D22:K22","v":""},null,null,null,null,null,null,null,null,null,null,null,null,null,null,null,null,null,null,null,null,null,null,null,null,null,null,null,null,null,null,null,null,null,null,null,null,null,null,null,7]
[null,null,null,{"$f":"'01'!D23:K23","v":""}]
[null,null,null,{"$f":"'01'!D24:K24","v":""},null,null,null,null,null,null,null,null,null,null,null,null,null,null,null,null,null,null,null,null,null,null,null,null,null,null,null,null,null,null,null,null,null,null,null,null,null,null,null,8]
[null,null,null,{"$f":"'01'!D25:K25","v":""}]
[null,null,null,{"$f":"'01'!D26:K26","v":""},null,null,null,null,null,null,null,null,null,null,null,null,null,null,null,null,null,null,null,null,null,null,null,null,null,null,null,null,null,null,null,null,null,null,null,null,null,null,null,9]
[null,null,null,{"$f":"'01'!D27:K27","v":""}]
[null,null,null,{"$f":"'01'!D28:K28","v":""},null,null,null,null,null,null,null,null,null,null,null,null,null,null,null,null,null,null,null,null,null,null,null,null,null,null,null,null,null,null,null,null,null,null,null,null,null,null,null,10]
[null,null,null,{"$f":"'01'!D29:K29","v":""}]
[null,null,null,{"$f":"'01'!D30:K30","v":"Ferien NDS | HB"},null,null,null,null,null,null,null,null,null,null,null,null,null,null,null,null,null,null,null,null,null,null,null,null,null,null,null,null,null,null,null,null,null,null,null,null,null,null,null,11]
[null,null,null,{"$f":"'01'!D31:K31","v":"Ferien HH"}]
[null,null,null,{"$f":"'01'!D32:K32","v":"Ferien SH"},null,null,null,null,null,null,null,null,null,null,null,null,null,null,null,null,null,null,null,null,null,null,null,null,null,null,null,null,null,null,null,null,null,null,null,null,null,null,null,12]
[null,null,null,{"$f":"'01'!D33:K33","v":"Ferien NRW"}]

{"sheet":"03","index":3,"n_rows":33,"n_cols":44,"rows_kept":33,"cut":false,"hidden":false,"merged":[[1,22,2,26],[1,1,2,9],[1,10,2,14],[1,15,2,17],[1,18,2,19],[1,20,2,21],[4,1,32,2],[4,4,6,11],[4,12,6,15],[4,17,6,41],[7,6,8,10],[9,3,9,10],[13,3,13,10],[17,3,17,10],[21,3,21,10],[25,3,25,10],[29,3,29,10],[1,27,2,31],[1,32,2,36],[1,37,2,42],[1,43,2,44],[3,43,8,44],[9,43,10,44],[10,3,10,10],[11,3,11,10],[11,43,12,44],[12,3,12,10],[13,43,14,44],[14,3,14,10],[15,3,15,10],[15,43,16,44],[16,3,16,10],[17,43,18,44],[18,3,18,10],[19,3,19,10],[19,43,20,44],[20,3,20,10],[21,43,22,44],[22,3,22,10],[23,3,23,10],[23,43,24,44],[24,3,24,10],[25,43,26,44],[26,3,26,10],[27,3,27,10],[27,43,28,44],[28,3,28,10],[29,43,30,44],[30,3,30,10],[31,3,31,10],[31,43,32,44],[32,3,32,10]]}
[]
[null,null,null,null,null,null,null,null,null,null,null,null,null,null,null,null,null,null,null,null,null,null,"sonstiges",null,null,null,null,"Seminar",null,null,null,null,"V A Z",null,null,null,null,"Urlaub"]
[]
[]
[null,null,null,null,"März",null,null,null,null,null,null,null,{"$f":"UPTbankzeit.de!AN11","v":2026},null,null,null,null,{"$f":"IF(UPTbankzeit.de!AN15=\"\",\"\",UPTbankzeit.de!AN15)","v":"Bitte Teamnamen eingeben"}]
[]
[]
[null,null,null,null,null,null,"Name",null,null,null,null,1,2,3,4,5,6,7,8,9,10,11,12,13,14,15,16,17,18,19,20,21,22,23,24,25,26,27,28,29,30,31]
[null,null,null,null,null,null,null,null,null,null,null,"So","Mo","Di","Mi","Do","Fr","Sa","So","Mo","Di","Mi","Do","Fr","Sa","So","Mo","Di","Mi","Do","Fr","Sa","So","Mo","Di","Mi","Do","Fr","Sa","So","Mo","Di"]
[null,null,null,{"$f":"'02'!D10:K10","v":"Urlaubsreif, Trude"},null,null,null,null,null,null,null,null,null,null,null,null,null,null,null,null,null,null,null,null,null,null,null,null,null,null,null,null,null,null,null,null,null,null,null,null,null,null,null,1]
[null,null,null,{"$f":"'02'!D11:K11","v":""}]
[null,null,null,{"$f":"'02'!D12:K12","v":""},null,null,null,null,null,null,null,null,null,null,null,null,null,null,null,null,null,null,null,null,null,null,null,null,null,null,null,null,null,null,null,null,null,null,null,null,null,null,null,2]
[null,null,null,{"$f":"'02'!D13:K13","v":""}]
[null,null,null,{"$f":"'02'!D14:K14","v":""},null,null,null,null,null,null,null,null,null,null,null,null,null,null,null,null,null,null,null,null,null,null,null,null,null,null,null,null,null,null,null,null,null,null,null,null,null,null,null,3]
[null,null,null,{"$f":"'02'!D15:K15","v":""}]
[null,null,null,{"$f":"'02'!D16:K16","v":""},null,null,null,null,null,null,null,null,null,null,null,null,null,null,null,null,null,null,null,null,null,null,null,null,null,null,null,null,null,null,null,null,null,null,null,null,null,null,null,4]
[null,null,null,{"$f":"'02'!D17:K17","v":""}]
[null,null,null,{"$f":"'02'!D18:K18","v":""},null,null,null,null,null,null,null,null,null,null,null,null,null,null,null,null,null,null,null,null,null,null,null,null,null,null,null,null,null,null,null,null,null,null,null,null,null,null,null,5]
[null,null,null,{"$f":"'02'!D19:K19","v":""}]
[null,null,null,{"$f":"'02'!D20:K20","v":""},null,null,null,null,null,null,null,null,null,null,null,null,null,null,null,null,null,null,null,null,null,null,null,null,null,null,null,null,null,null,null,null,null,null,null,null,null,null,null,6]
[null,null,null,{"$f":"'02'!D21:K21","v":""}]
[null,null,null,{"$f":"'02'!D22:K22","v":""},null,null,null,null,null,null,null,null,null,null,null,null,null,null,null,null,null,null,null,null,null,null,null,null,null,null,null,null,null,null,null,null,null,null,null,null,null,null,null,7]
[null,null,null,{"$f":"'02'!D23:K23","v":""}]
[null,null,null,{"$f":"'02'!D24:K24","v":""},null,null,null,null,null,null,null,null,null,null,null,null,null,null,null,null,null,null,null,null,null,null,null,null,null,null,null,null,null,null,null,null,null,null,null,null,null,null,null,8]
[null,null,null,{"$f":"'02'!D25:K25","v":""}]
[null,null,null,{"$f":"'02'!D26:K26","v":""},null,null,null,null,null,null,null,null,null,null,null,null,null,null,null,null,null,null,null,null,null,null,null,null,null,null,null,null,null,null,null,null,null,null,null,null,null,null,null,9]
[null,null,null,{"$f":"'02'!D27:K27","v":""}]
[null,null,null,{"$f":"'02'!D28:K28","v":""},null,null,null,null,null,null,null,null,null,null,null,null,null,null,null,null,null,null,null,null,null,null,null,null,null,null,null,null,null,null,null,null,null,null,null,null,null,null,null,10]
[null,null,null,{"$f":"'02'!D29:K29","v":""}]
[null,null,null,{"$f":"'01'!D30:K30","v":"Ferien NDS | HB"},null,null,null,null,null,null,null,null,null,null,null,null,null,null,null,null,null,null,null,null,null,null,null,null,null,null,null,null,null,null,null,null,null,null,null,null,null,null,null,11]
[null,null,null,{"$f":"'01'!D31:K31","v":"Ferien HH"}]
[null,null,null,{"$f":"'01'!D32:K32","v":"Ferien SH"},null,null,null,null,null,null,null,null,null,null,null,null,null,null,null,null,null,null,null,null,null,null,null,null,null,null,null,null,null,null,null,null,null,null,null,null,null,null,null,12]
[null,null,null,{"$f":"'01'!D33:K33","v":"Ferien NRW"}]

{"sheet":"04","index":4,"n_rows":33,"n_cols":44,"rows_kept":33,"cut":false,"hidden":false,"merged":[[29,43,30,44],[30,3,30,10],[31,3,31,10],[31,43,32,44],[32,3,32,10],[25,43,26,44],[26,3,26,10],[27,3,27,10],[27,43,28,44],[28,3,28,10],[21,43,22,44],[22,3,22,10],[23,3,23,10],[23,43,24,44],[24,3,24,10],[17,43,18,44],[18,3,18,10],[19,3,19,10],[19,43,20,44],[20,3,20,10],[13,43,14,44],[14,3,14,10],[15,3,15,10],[15,43,16,44],[16,3,16,10],[9,43,10,44],[10,3,10,10],[11,3,11,10],[11,43,12,44],[12,3,12,10],[1,27,2,31],[1,32,2,36],[1,37,2,42],[1,43,2,44],[3,43,8,44],[4,1,32,2],[4,4,6,11],[4,12,6,15],[4,17,6,41],[7,6,8,10],[9,3,9,10],[13,3,13,10],[17,3,17,10],[21,3,21,10],[25,3,25,10],[29,3,29,10],[1,22,2,26],[1,1,2,9],[1,10,2,14],[1,15,2,17],[1,18,2,19],[1,20,2,21]]}
[]
[null,null,null,null,null,null,null,null,null,null,null,null,null,null,null,null,null,null,null,null,null,null,"sonstiges",null,null,null,null,"Seminar",null,null,null,null,"V A Z",null,null,null,null,"Urlaub"]
[]
[]
[null,null,null,null,"April",null,null,null,null,null,null,null,{"$f":"UPTbankzeit.de!AN11","v":2026},null,null,null,null,{"$f":"IF(UPTbankzeit.de!AN15=\"\",\"\",UPTbankzeit.de!AN15)","v":"Bitte Teamnamen eingeben"}]
[]
[]
[null,null,null,null,null,null,"Name",null,null,null,null,1,2,3,4,5,6,7,8,9,10,11,12,13,14,15,16,17,18,19,20,21,22,23,24,25,26,27,28,29,30]
[null,null,null,null,null,null,null,null,null,null,null,"Mi","Do","Fr","Sa","So","Mo","Di","Mi","Do","Fr","Sa","So","Mo","Di","Mi","Do","Fr","Sa","So","Mo","Di","Mi","Do","Fr","Sa","So","Mo","Di","Mi","Do"]
[null,null,null,{"$f":"'03'!D10:K10","v":"Urlaubsreif, Trude"},null,null,null,null,null,null,null,null,null,null,null,null,null,null,null,null,null,null,null,null,null,null,null,null,null,null,null,null,null,null,null,null,null,null,null,null,null,null,null,1]
[null,null,null,{"$f":"'03'!D11:K11","v":""}]
[null,null,null,{"$f":"'03'!D12:K12","v":""},null,null,null,null,null,null,null,null,null,null,null,null,null,null,null,null,null,null,null,null,null,null,null,null,null,null,null,null,null,null,null,null,null,null,null,null,null,null,null,2]
[null,null,null,{"$f":"'03'!D13:K13","v":""}]
[null,null,null,{"$f":"'03'!D14:K14","v":""},null,null,null,null,null,null,null,null,null,null,null,null,null,null,null,null,null,null,null,null,null,null,null,null,null,null,null,null,null,null,null,null,null,null,null,null,null,null,null,3]
[null,null,null,{"$f":"'03'!D15:K15","v":""}]
[null,null,null,{"$f":"'03'!D16:K16","v":""},null,null,null,null,null,null,null,null,null,null,null,null,null,null,null,null,null,null,null,null,null,null,null,null,null,null,null,null,null,null,null,null,null,null,null,null,null,null,null,4]
[null,null,null,{"$f":"'03'!D17:K17","v":""}]
[null,null,null,{"$f":"'03'!D18:K18","v":""},null,null,null,null,null,null,null,null,null,null,null,null,null,null,null,null,null,null,null,null,null,null,null,null,null,null,null,null,null,null,null,null,null,null,null,null,null,null,null,5]
[null,null,null,{"$f":"'03'!D19:K19","v":""}]
[null,null,null,{"$f":"'03'!D20:K20","v":""},null,null,null,null,null,null,null,null,null,null,null,null,null,null,null,null,null,null,null,null,null,null,null,null,null,null,null,null,null,null,null,null,null,null,null,null,null,null,null,6]
[null,null,null,{"$f":"'03'!D21:K21","v":""}]
[null,null,null,{"$f":"'03'!D22:K22","v":""},null,null,null,null,null,null,null,null,null,null,null,null,null,null,null,null,null,null,null,null,null,null,null,null,null,null,null,null,null,null,null,null,null,null,null,null,null,null,null,7]
[null,null,null,{"$f":"'03'!D23:K23","v":""}]
[null,null,null,{"$f":"'03'!D24:K24","v":""},null,null,null,null,null,null,null,null,null,null,null,null,null,null,null,null,null,null,null,null,null,null,null,null,null,null,null,null,null,null,null,null,null,null,null,null,null,null,null,8]
[null,null,null,{"$f":"'03'!D25:K25","v":""}]
[null,null,null,{"$f":"'03'!D26:K26","v":""},null,null,null,null,null,null,null,null,null,null,null,null,null,null,null,null,null,null,null,null,null,null,null,null,null,null,null,null,null,null,null,null,null,null,null,null,null,null,null,9]
[null,null,null,{"$f":"'03'!D27:K27","v":""}]
[null,null,null,{"$f":"'03'!D28:K28","v":""},null,null,null,null,null,null,null,null,null,null,null,null,null,null,null,null,null,null,null,null,null,null,null,null,null,null,null,null,null,null,null,null,null,null,null,null,null,null,null,10]
[null,null,null,{"$f":"'03'!D29:K29","v":""}]
[null,null,null,{"$f":"'01'!D30:K30","v":"Ferien NDS | HB"},null,null,null,null,null,null,null,null,null,null,null,null,null,null,null,null,null,null,null,null,null,null,null,null,null,null,null,null,null,null,null,null,null,null,null,null,null,null,null,11]
[null,null,null,{"$f":"'01'!D31:K31","v":"Ferien HH"}]
[null,null,null,{"$f":"'01'!D32:K32","v":"Ferien SH"},null,null,null,null,null,null,null,null,null,null,null,null,null,null,null,null,null,null,null,null,null,null,null,null,null,null,null,null,null,null,null,null,null,null,null,null,null,null,null,12]
[null,null,null,{"$f":"'01'!D33:K33","v":"Ferien NRW"}]

{"sheet":"05","index":5,"n_rows":33,"n_cols":44,"rows_kept":33,"cut":false,"hidden":false,"merged":[[29,43,30,44],[30,3,30,10],[31,3,31,10],[31,43,32,44],[32,3,32,10],[25,43,26,44],[26,3,26,10],[27,3,27,10],[27,43,28,44],[28,3,28,10],[21,43,22,44],[22,3,22,10],[23,3,23,10],[23,43,24,44],[24,3,24,10],[17,43,18,44],[18,3,18,10],[19,3,19,10],[19,43,20,44],[20,3,20,10],[13,43,14,44],[14,3,14,10],[15,3,15,10],[15,43,16,44],[16,3,16,10],[9,43,10,44],[10,3,10,10],[11,3,11,10],[11,43,12,44],[12,3,12,10],[1,27,2,31],[1,32,2,36],[1,37,2,42],[1,43,2,44],[3,43,8,44],[4,1,32,2],[4,4,6,11],[4,12,6,15],[4,17,6,41],[7,6,8,10],[9,3,9,10],[13,3,13,10],[17,3,17,10],[21,3,21,10],[25,3,25,10],[29,3,29,10],[1,22,2,26],[1,1,2,9],[1,10,2,14],[1,15,2,17],[1,18,2,19],[1,20,2,21]]}
[]
[null,null,null,null,null,null,null,null,null,null,null,null,null,null,null,null,null,null,null,null,null,null,"sonstiges",null,null,null,null,"Seminar",null,null,null,null,"V A Z",null,null,null,null,"Urlaub"]
[]
[]
[null,null,null,null,"Mai",null,null,null,null,null,null,null,{"$f":"UPTbankzeit.de!AN11","v":2026},null,null,null,null,{"$f":"IF(UPTbankzeit.de!AN15=\"\",\"\",UPTbankzeit.de!AN15)","v":"Bitte Teamnamen eingeben"}]
[]
[]
[null,null,null,null,null,null,"Name",null,null,null,null,1,2,3,4,5,6,7,8,9,10,11,12,13,14,15,16,17,18,19,20,21,22,23,24,25,26,27,28,29,30,31]
[null,null,null,null,null,null,null,null,null,null,null,"Fr","Sa","So","Mo","Di","Mi","Do","Fr","Sa","So","Mo","Di","Mi","Do","Fr","Sa","So","Mo","Di","Mi","Do","Fr","Sa","So","Mo","Di","Mi","Do","Fr","Sa","So"]
[null,null,null,{"$f":"'04'!D10:K10","v":"Urlaubsreif, Trude"},null,null,null,null,null,null,null,null,null,null,null,null,null,null,null,null,null,null,null,null,null,null,null,null,null,null,null,null,null,null,null,null,null,null,null,null,null,null,null,1]
[null,null,null,{"$f":"'04'!D11:K11","v":""}]
[null,null,null,{"$f":"'04'!D12:K12","v":""},null,null,null,null,null,null,null,null,null,null,null,null,null,null,null,null,null,null,null,null,null,null,null,null,null,null,null,null,null,null,null,null,null,null,null,null,null,null,null,2]
[null,null,null,{"$f":"'04'!D13:K13","v":""}]
[null,null,null,{"$f":"'04'!D14:K14","v":""},null,null,null,null,null,null,null,null,null,null,null,null,null,null,null,null,null,null,null,null,null,null,null,null,null,null,null,null,null,null,null,null,null,null,null,null,null,null,null,3]
[null,null,null,{"$f":"'04'!D15:K15","v":""}]
[null,null,null,{"$f":"'04'!D16:K16","v":""},null,null,null,null,null,null,null,null,null,null,null,null,null,null,null,null,null,null,null,null,null,null,null,null,null,null,null,null,null,null,null,null,null,null,null,null,null,null,null,4]
[null,null,null,{"$f":"'04'!D17:K17","v":""}]
[null,null,null,{"$f":"'04'!D18:K18","v":""},null,null,null,null,null,null,null,null,null,null,null,null,null,null,null,null,null,null,null,null,null,null,null,null,null,null,null,null,null,null,null,null,null,null,null,null,null,null,null,5]
[null,null,null,{"$f":"'04'!D19:K19","v":""}]
[null,null,null,{"$f":"'04'!D20:K20","v":""},null,null,null,null,null,null,null,null,null,null,null,null,null,null,null,null,null,null,null,null,null,null,null,null,null,null,null,null,null,null,null,null,null,null,null,null,null,null,null,6]
[null,null,null,{"$f":"'04'!D21:K21","v":""}]
[null,null,null,{"$f":"'04'!D22:K22","v":""},null,null,null,null,null,null,null,null,null,null,null,null,null,null,null,null,null,null,null,null,null,null,null,null,null,null,null,null,null,null,null,null,null,null,null,null,null,null,null,7]
[null,null,null,{"$f":"'04'!D23:K23","v":""}]
[null,null,null,{"$f":"'04'!D24:K24","v":""},null,null,null,null,null,null,null,null,null,null,null,null,null,null,null,null,null,null,null,null,null,null,null,null,null,null,null,null,null,null,null,null,null,null,null,null,null,null,null,8]
[null,null,null,{"$f":"'04'!D25:K25","v":""}]
[null,null,null,{"$f":"'04'!D26:K26","v":""},null,null,null,null,null,null,null,null,null,null,null,null,null,null,null,null,null,null,null,null,null,null,null,null,null,null,null,null,null,null,null,null,null,null,null,null,null,null,null,9]
[null,null,null,{"$f":"'04'!D27:K27","v":""}]
[null,null,null,{"$f":"'04'!D28:K28","v":""},null,null,null,null,null,null,null,null,null,null,null,null,null,null,null,null,null,null,null,null,null,null,null,null,null,null,null,null,null,null,null,null,null,null,null,null,null,null,null,10]
[null,null,null,{"$f":"'04'!D29:K29","v":""}]
[null,null,null,{"$f":"'01'!D30:K30","v":"Ferien NDS | HB"},null,null,null,null,null,null,null,null,null,null,null,null,null,null,null,null,null,null,null,null,null,null,null,null,null,null,null,null,null,null,null,null,null,null,null,null,null,null,null,11]
[null,null,null,{"$f":"'01'!D31:K31","v":"Ferien HH"}]
[null,null,null,{"$f":"'01'!D32:K32","v":"Ferien SH"},null,null,null,null,null,null,null,null,null,null,null,null,null,null,null,null,null,null,null,null,null,null,null,null,null,null,null,null,null,null,null,null,null,null,null,null,null,null,null,12]
[null,null,null,{"$f":"'01'!D33:K33","v":"Ferien NRW"}]

{"sheet":"06","index":6,"n_rows":33,"n_cols":44,"rows_kept":33,"cut":false,"hidden":false,"merged":[[29,43,30,44],[30,3,30,10],[31,3,31,10],[31,43,32,44],[32,3,32,10],[25,43,26,44],[26,3,26,10],[27,3,27,10],[27,43,28,44],[28,3,28,10],[21,43,22,44],[22,3,22,10],[23,3,23,10],[23,43,24,44],[24,3,24,10],[17,43,18,44],[18,3,18,10],[19,3,19,10],[19,43,20,44],[20,3,20,10],[13,43,14,44],[14,3,14,10],[15,3,15,10],[15,43,16,44],[16,3,16,10],[9,43,10,44],[10,3,10,10],[11,3,11,10],[11,43,12,44],[12,3,12,10],[1,27,2,31],[1,32,2,36],[1,37,2,42],[1,43,2,44],[3,43,8,44],[4,1,32,2],[4,4,6,11],[4,12,6,15],[4,17,6,41],[7,6,8,10],[9,3,9,10],[13,3,13,10],[17,3,17,10],[21,3,21,10],[25,3,25,10],[29,3,29,10],[1,22,2,26],[1,1,2,9],[1,10,2,14],[1,15,2,17],[1,18,2,19],[1,20,2,21]]}
[]
[null,null,null,null,null,null,null,null,null,null,null,null,null,null,null,null,null,null,null,null,null,null,"sonstiges",null,null,null,null,"Seminar",null,null,null,null,"V A Z",null,null,null,null,"Urlaub"]
[]
[]
[null,null,null,null,"Juni",null,null,null,null,null,null,null,{"$f":"UPTbankzeit.de!AN11","v":2026},null,null,null,null,{"$f":"IF(UPTbankzeit.de!AN15=\"\",\"\",UPTbankzeit.de!AN15)","v":"Bitte Teamnamen eingeben"}]
[]
[]
[null,null,null,null,null,null,"Name",null,null,null,null,1,2,3,4,5,6,7,8,9,10,11,12,13,14,15,16,17,18,19,20,21,22,23,24,25,26,27,28,29,30]
[null,null,null,null,null,null,null,null,null,null,null,"Mo","Di","Mi","Do","Fr","Sa","So","Mo","Di","Mi","Do","Fr","Sa","So","Mo","Di","Mi","Do","Fr","Sa","So","Mo","Di","Mi","Do","Fr","Sa","So","Mo","Di"]
[null,null,null,{"$f":"'05'!D10:K10","v":"Urlaubsreif, Trude"},null,null,null,null,null,null,null,null,null,null,null,null,null,null,null,null,null,null,null,null,null,null,null,null,null,null,null,null,null,null,null,null,null,null,null,null,null,null,null,1]
[null,null,null,{"$f":"'05'!D11:K11","v":""}]
[null,null,null,{"$f":"'05'!D12:K12","v":""},null,null,null,null,null,null,null,null,null,null,null,null,null,null,null,null,null,null,null,null,null,null,null,null,null,null,null,null,null,null,null,null,null,null,null,null,null,null,null,2]
[null,null,null,{"$f":"'05'!D13:K13","v":""}]
[null,null,null,{"$f":"'05'!D14:K14","v":""},null,null,null,null,null,null,null,null,null,null,null,null,null,null,null,null,null,null,null,null,null,null,null,null,null,null,null,null,null,null,null,null,null,null,null,null,null,null,null,3]
[null,null,null,{"$f":"'05'!D15:K15","v":""}]
[null,null,null,{"$f":"'05'!D16:K16","v":""},null,null,null,null,null,null,null,null,null,null,null,null,null,null,null,null,null,null,null,null,null,null,null,null,null,null,null,null,null,null,null,null,null,null,null,null,null,null,null,4]
[null,null,null,{"$f":"'05'!D17:K17","v":""}]
[null,null,null,{"$f":"'05'!D18:K18","v":""},null,null,null,null,null,null,null,null,null,null,null,null,null,null,null,null,null,null,null,null,null,null,null,null,null,null,null,null,null,null,null,null,null,null,null,null,null,null,null,5]
[null,null,null,{"$f":"'05'!D19:K19","v":""}]
[null,null,null,{"$f":"'05'!D20:K20","v":""},null,null,null,null,null,null,null,null,null,null,null,null,null,null,null,null,null,null,null,null,null,null,null,null,null,null,null,null,null,null,null,null,null,null,null,null,null,null,null,6]
[null,null,null,{"$f":"'05'!D21:K21","v":""}]
[null,null,null,{"$f":"'05'!D22:K22","v":""},null,null,null,null,null,null,null,null,null,null,null,null,null,null,null,null,null,null,null,null,null,null,null,null,null,null,null,null,null,null,null,null,null,null,null,null,null,null,null,7]
[null,null,null,{"$f":"'05'!D23:K23","v":""}]
[null,null,null,{"$f":"'05'!D24:K24","v":""},null,null,null,null,null,null,null,null,null,null,null,null,null,null,null,null,null,null,null,null,null,null,null,null,null,null,null,null,null,null,null,null,null,null,null,null,null,null,null,8]
[null,null,null,{"$f":"'05'!D25:K25","v":""}]
[null,null,null,{"$f":"'05'!D26:K26","v":""},null,null,null,null,null,null,null,null,null,null,null,null,null,null,null,null,null,null,null,null,null,null,null,null,null,null,null,null,null,null,null,null,null,null,null,null,null,null,null,9]
[null,null,null,{"$f":"'05'!D27:K27","v":""}]
[null,null,null,{"$f":"'05'!D28:K28","v":""},null,null,null,null,null,null,null,null,null,null,null,null,null,null,null,null,null,null,null,null,null,null,null,null,null,null,null,null,null,null,null,null,null,null,null,null,null,null,null,10]
[null,null,null,{"$f":"'05'!D29:K29","v":""}]
[null,null,null,{"$f":"'01'!D30:K30","v":"Ferien NDS | HB"},null,null,null,null,null,null,null,null,null,null,null,null,null,null,null,null,null,null,null,null,null,null,null,null,null,null,null,null,null,null,null,null,null,null,null,null,null,null,null,11]
[null,null,null,{"$f":"'01'!D31:K31","v":"Ferien HH"}]
[null,null,null,{"$f":"'01'!D32:K32","v":"Ferien SH"},null,null,null,null,null,null,null,null,null,null,null,null,null,null,null,null,null,null,null,null,null,null,null,null,null,null,null,null,null,null,null,null,null,null,null,null,null,null,null,12]
[null,null,null,{"$f":"'01'!D33:K33","v":"Ferien NRW"}]

{"sheet":"07","index":7,"n_rows":33,"n_cols":44,"rows_kept":33,"cut":false,"hidden":false,"merged":[[29,43,30,44],[30,3,30,10],[31,3,31,10],[31,43,32,44],[32,3,32,10],[25,43,26,44],[26,3,26,10],[27,3,27,10],[27,43,28,44],[28,3,28,10],[21,43,22,44],[22,3,22,10],[23,3,23,10],[23,43,24,44],[24,3,24,10],[17,43,18,44],[18,3,18,10],[19,3,19,10],[19,43,20,44],[20,3,20,10],[13,43,14,44],[14,3,14,10],[15,3,15,10],[15,43,16,44],[16,3,16,10],[9,43,10,44],[10,3,10,10],[11,3,11,10],[11,43,12,44],[12,3,12,10],[1,27,2,31],[1,32,2,36],[1,37,2,42],[1,43,2,44],[3,43,8,44],[4,1,32,2],[4,4,6,11],[4,12,6,15],[4,17,6,41],[7,6,8,10],[9,3,9,10],[13,3,13,10],[17,3,17,10],[21,3,21,10],[25,3,25,10],[29,3,29,10],[1,22,2,26],[1,1,2,9],[1,10,2,14],[1,15,2,17],[1,18,2,19],[1,20,2,21]]}
[]
[null,null,null,null,null,null,null,null,null,null,null,null,null,null,null,null,null,null,null,null,null,null,"sonstiges",null,null,null,null,"Seminar",null,null,null,null,"V A Z",null,null,null,null,"Urlaub"]
[]
[]
[null,null,null,null,"Juli",null,null,null,null,null,null,null,{"$f":"UPTbankzeit.de!AN11","v":2026},null,null,null,null,{"$f":"IF(UPTbankzeit.de!AN15=\"\",\"\",UPTbankzeit.de!AN15)","v":"Bitte Teamnamen eingeben"}]
[]
[]
[null,null,null,null,null,null,"Name",null,null,null,null,1,2,3,4,5,6,7,8,9,10,11,12,13,14,15,16,17,18,19,20,21,22,23,24,25,26,27,28,29,30,31]
[null,null,null,null,null,null,null,null,null,null,null,"Mi","Do","Fr","Sa","So","Mo","Di","Mi","Do","Fr","Sa","So","Mo","Di","Mi","Do","Fr","Sa","So","Mo","Di","Mi","Do","Fr","Sa","So","Mo","Di","Mi","Do","Fr"]
[null,null,null,{"$f":"'06'!D10:K10","v":"Urlaubsreif, Trude"},null,null,null,null,null,null,null,null,null,null,null,null,null,null,null,null,null,null,null,null,null,null,null,null,null,null,null,null,null,null,null,null,null,null,null,null,null,null,null,1]
[null,null,null,{"$f":"'06'!D11:K11","v":""}]
[null,null,null,{"$f":"'06'!D12:K12","v":""},null,null,null,null,null,null,null,null,null,null,null,null,null,null,null,null,null,null,null,null,null,null,null,null,null,null,null,null,null,null,null,null,null,null,null,null,null,null,null,2]
[null,null,null,{"$f":"'06'!D13:K13","v":""}]
[null,null,null,{"$f":"'06'!D14:K14","v":""},null,null,null,null,null,null,null,null,null,null,null,null,null,null,null,null,null,null,null,null,null,null,null,null,null,null,null,null,null,null,null,null,null,null,null,null,null,null,null,3]
[null,null,null,{"$f":"'06'!D15:K15","v":""}]
[null,null,null,{"$f":"'06'!D16:K16","v":""},null,null,null,null,null,null,null,null,null,null,null,null,null,null,null,null,null,null,null,null,null,null,null,null,null,null,null,null,null,null,null,null,null,null,null,null,null,null,null,4]
[null,null,null,{"$f":"'06'!D17:K17","v":""}]
[null,null,null,{"$f":"'06'!D18:K18","v":""},null,null,null,null,null,null,null,null,null,null,null,null,null,null,null,null,null,null,null,null,null,null,null,null,null,null,null,null,null,null,null,null,null,null,null,null,null,null,null,5]
[null,null,null,{"$f":"'06'!D19:K19","v":""}]
[null,null,null,{"$f":"'06'!D20:K20","v":""},null,null,null,null,null,null,null,null,null,null,null,null,null,null,null,null,null,null,null,null,null,null,null,null,null,null,null,null,null,null,null,null,null,null,null,null,null,null,null,6]
[null,null,null,{"$f":"'06'!D21:K21","v":""}]
[null,null,null,{"$f":"'06'!D22:K22","v":""},null,null,null,null,null,null,null,null,null,null,null,null,null,null,null,null,null,null,null,null,null,null,null,null,null,null,null,null,null,null,null,null,null,null,null,null,null,null,null,7]
[null,null,null,{"$f":"'06'!D23:K23","v":""}]
[null,null,null,{"$f":"'06'!D24:K24","v":""},null,null,null,null,null,null,null,null,null,null,null,null,null,null,null,null,null,null,null,null,null,null,null,null,null,null,null,null,null,null,null,null,null,null,null,null,null,null,null,8]
[null,null,null,{"$f":"'06'!D25:K25","v":""}]
[null,null,null,{"$f":"'06'!D26:K26","v":""},null,null,null,null,null,null,null,null,null,null,null,null,null,null,null,null,null,null,null,null,null,null,null,null,null,null,null,null,null,null,null,null,null,null,null,null,null,null,null,9]
[null,null,null,{"$f":"'06'!D27:K27","v":""}]
[null,null,null,{"$f":"'06'!D28:K28","v":""},null,null,null,null,null,null,null,null,null,null,null,null,null,null,null,null,null,null,null,null,null,null,null,null,null,null,null,null,null,null,null,null,null,null,null,null,null,null,null,10]
[null,null,null,{"$f":"'06'!D29:K29","v":""}]
[null,null,null,{"$f":"'01'!D30:K30","v":"Ferien NDS | HB"},null,null,null,null,null,null,null,null,null,null,null,null,null,null,null,null,null,null,null,null,null,null,null,null,null,null,null,null,null,null,null,null,null,null,null,null,null,null,null,11]
[null,null,null,{"$f":"'01'!D31:K31","v":"Ferien HH"}]
[null,null,null,{"$f":"'01'!D32:K32","v":"Ferien SH"},null,null,null,null,null,null,null,null,null,null,null,null,null,null,null,null,null,null,null,null,null,null,null,null,null,null,null,null,null,null,null,null,null,null,null,null,null,null,null,12]
[null,null,null,{"$f":"'01'!D33:K33","v":"Ferien NRW"}]

{"sheet":"08","index":8,"n_rows":33,"n_cols":44,"rows_kept":33,"cut":false,"hidden":false,"merged":[[29,43,30,44],[30,3,30,10],[31,3,31,10],[31,43,32,44],[32,3,32,10],[25,43,26,44],[26,3,26,10],[27,3,27,10],[27,43,28,44],[28,3,28,10],[21,43,22,44],[22,3,22,10],[23,3,23,10],[23,43,24,44],[24,3,24,10],[17,43,18,44],[18,3,18,10],[19,3,19,10],[19,43,20,44],[20,3,20,10],[13,43,14,44],[14,3,14,10],[15,3,15,10],[15,43,16,44],[16,3,16,10],[9,43,10,44],[10,3,10,10],[11,3,11,10],[11,43,12,44],[12,3,12,10],[1,27,2,31],[1,32,2,36],[1,37,2,42],[1,43,2,44],[3,43,8,44],[4,1,32,2],[4,4,6,11],[4,12,6,15],[4,17,6,41],[7,6,8,10],[9,3,9,10],[13,3,13,10],[17,3,17,10],[21,3,21,10],[25,3,25,10],[29,3,29,10],[1,22,2,26],[1,1,2,9],[1,10,2,14],[1,15,2,17],[1,18,2,19],[1,20,2,21]]}
[]
[null,null,null,null,null,null,null,null,null,null,null,null,null,null,null,null,null,null,null,null,null,null,"sonstiges",null,null,null,null,"Seminar",null,null,null,null,"V A Z",null,null,null,null,"Urlaub"]
[]
[]
[null,null,null,null,"August",null,null,null,null,null,null,null,{"$f":"UPTbankzeit.de!AN11","v":2026},null,null,null,null,{"$f":"IF(UPTbankzeit.de!AN15=\"\",\"\",UPTbankzeit.de!AN15)","v":"Bitte Teamnamen eingeben"}]
[]
[]
[null,null,null,null,null,null,"Name",null,null,null,null,1,2,3,4,5,6,7,8,9,10,11,12,13,14,15,16,17,18,19,20,21,22,23,24,25,26,27,28,29,30,31]
[null,null,null,null,null,null,null,null,null,null,null,"Sa","So","Mo","Di","Mi","Do","Fr","Sa","So","Mo","Di","Mi","Do","Fr","Sa","So","Mo","Di","Mi","Do","Fr","Sa","So","Mo","Di","Mi","Do","Fr","Sa","So","Mo"]
[null,null,null,{"$f":"'07'!D10:K10","v":"Urlaubsreif, Trude"},null,null,null,null,null,null,null,null,null,"      ",null,null,null,null,null,null,null,null,null,null,null,null,null,null,null,null,null,null,null,null,null,null,null,null,null,null,null,null,null,1]
[null,null,null,{"$f":"'07'!D11:K11","v":""}]
[null,null,null,{"$f":"'07'!D12:K12","v":""},null,null,null,null,null,null,null,null,null,null,null,null,null,null,null,null,null,null,null,null,null,null,null,null,null,null,null,null,null,null,null,null,null,null,null,null,null,null,null,2]
[null,null,null,{"$f":"'07'!D13:K13","v":""}]
[null,null,null,{"$f":"'07'!D14:K14","v":""},null,null,null,null,null,null,null,null,null,null,null,null,null,null,null,null,null,null,null,null,null,null,null,null,null,null,null,null,null,null,null,null,null,null,null,null,null,null,null,3]
[null,null,null,{"$f":"'07'!D15:K15","v":""}]
[null,null,null,{"$f":"'07'!D16:K16","v":""},null,null,null,null,null,null,null,null,null,null,null,null,null,null,null,null,null,null,null,null,null,null,null,null,null,null,null,null,null,null,null,null,null,null,null,null,null,null,null,4]
[null,null,null,{"$f":"'07'!D17:K17","v":""}]
[null,null,null,{"$f":"'07'!D18:K18","v":""},null,null,null,null,null,null,null,null,null,null,null,null,null,null,null,null,null,null,null,null,null,null,null,null,null,null,null,null,null,null,null,null,null,null,null,null,null,null,null,5]
[null,null,null,{"$f":"'07'!D19:K19","v":""}]
[null,null,null,{"$f":"'07'!D20:K20","v":""},null,null,null,null,null,null,null,null,null,null,null,null,null,null,null,null,null,null,null,null,null,null,null,null,null,null,null,null,null,null,null,null,null,null,null,null,null,null,null,6]
[null,null,null,{"$f":"'07'!D21:K21","v":""}]
[null,null,null,{"$f":"'07'!D22:K22","v":""},null,null,null,null,null,null,null,null,null,null,null,null,null,null,null,null,null,null,null,null,null,null,null,null,null,null,null,null,null,null,null,null,null,null,null,null,null,null,null,7]
[null,null,null,{"$f":"'07'!D23:K23","v":""}]
[null,null,null,{"$f":"'07'!D24:K24","v":""},null,null,null,null,null,null,null,null,null,null,null,null,null,null,null,null,null,null,null,null,null,null,null,null,null,null,null,null,null,null,null,null,null,null,null,null,null,null,null,8]
[null,null,null,{"$f":"'07'!D25:K25","v":""}]
[null,null,null,{"$f":"'07'!D26:K26","v":""},null,null,null,null,null,null,null,null,null,null,null,null,null,null,null,null,null,null,null,null,null,null,null,null,null,null,null,null,null,null,null,null,null,null,null,null,null,null,null,9]
[null,null,null,{"$f":"'07'!D27:K27","v":""}]
[null,null,null,{"$f":"'07'!D28:K28","v":""},null,null,null,null,null,null,null,null,null,null,null,null,null,null,null,null,null,null,null,null,null,null,null,null,null,null,null,null,null,null,null,null,null,null,null,null,null,null,null,10]
[null,null,null,{"$f":"'07'!D29:K29","v":""}]
[null,null,null,{"$f":"'01'!D30:K30","v":"Ferien NDS | HB"},null,null,null,null,null,null,null,null,null,null,null,null,null,null,null,null,null,null,null,null,null,null,null,null,null,null,null,null,null,null,null,null,null,null,null,null,null,null,null,11]
[null,null,null,{"$f":"'01'!D31:K31","v":"Ferien HH"}]
[null,null,null,{"$f":"'01'!D32:K32","v":"Ferien SH"},null,null,null,null,null,null,null,null,null,null,null,null,null,null,null,null,null,null,null,null,null,null,null,null,null,null,null,null,null,null,null,null,null,null,null,null,null,null,null,12]
[null,null,null,{"$f":"'01'!D33:K33","v":"Ferien NRW"}]

{"sheet":"09","index":9,"n_rows":33,"n_cols":44,"rows_kept":33,"cut":false,"hidden":false,"merged":[[29,43,30,44],[30,3,30,10],[31,3,31,10],[31,43,32,44],[32,3,32,10],[25,43,26,44],[26,3,26,10],[27,3,27,10],[27,43,28,44],[28,3,28,10],[21,43,22,44],[22,3,22,10],[23,3,23,10],[23,43,24,44],[24,3,24,10],[17,43,18,44],[18,3,18,10],[19,3,19,10],[19,43,20,44],[20,3,20,10],[13,43,14,44],[14,3,14,10],[15,3,15,10],[15,43,16,44],[16,3,16,10],[9,43,10,44],[10,3,10,10],[11,3,11,10],[11,43,12,44],[12,3,12,10],[1,27,2,31],[1,32,2,36],[1,37,2,42],[1,43,2,44],[3,43,8,44],[4,1,32,2],[4,4,6,11],[4,12,6,15],[4,17,6,41],[7,6,8,10],[9,3,9,10],[13,3,13,10],[17,3,17,10],[21,3,21,10],[25,3,25,10],[29,3,29,10],[1,22,2,26],[1,1,2,9],[1,10,2,14],[1,15,2,17],[1,18,2,19],[1,20,2,21]]}
[]
[null,null,null,null,null,null,null,null,null,null,null,null,null,null,null,null,null,null,null,null,null,null,"sonstiges",null,null,null,null,"Seminar",null,null,null,null,"V A Z",null,null,null,null,"Urlaub"]
[]
[]
[null,null,null,null,"September",null,null,null,null,null,null,null,{"$f":"UPTbankzeit.de!AN11","v":2026},null,null,null,null,{"$f":"IF(UPTbankzeit.de!AN15=\"\",\"\",UPTbankzeit.de!AN15)","v":"Bitte Teamnamen eingeben"}]
[]
[]
[null,null,null,null,null,null,"Name",null,null,null,null,1,2,3,4,5,6,7,8,9,10,11,12,13,14,15,16,17,18,19,20,21,22,23,24,25,26,27,28,29,30]
[null,null,null,null,null,null,null,null,null,null,null,"Di","Mi","Do","Fr","Sa","So","Mo","Di","Mi","Do","Fr","Sa","So","Mo","Di","Mi","Do","Fr","Sa","So","Mo","Di","Mi","Do","Fr","Sa","So","Mo","Di","Mi"]
[null,null,null,{"$f":"'08'!D10:K10","v":"Urlaubsreif, Trude"},null,null,null,null,null,null,null,null,null,null,null,null,null,null,null,null,null,null,null,null,null,null,null,null,null,null,null,null,null,null,null,null,null,null,null,null,null,null,null,1]
[null,null,null,{"$f":"'08'!D11:K11","v":""}]
[null,null,null,{"$f":"'08'!D12:K12","v":""},null,null,null,null,null,null,null,null,null,null,null,null,null,null,null,null,null,null,null,null,null,null,null,null,null,null,null,null,null,null,null,null,null,null,null,null,null,null,null,2]
[null,null,null,{"$f":"'08'!D13:K13","v":""}]
[null,null,null,{"$f":"'08'!D14:K14","v":""},null,null,null,null,null,null,null,null,null,null,null,null,null,null,null,null,null,null,null,null,null,null,null,null,null,null,null,null,null,null,null,null,null,null,null,null,null,null,null,3]
[null,null,null,{"$f":"'08'!D15:K15","v":""}]
[null,null,null,{"$f":"'08'!D16:K16","v":""},null,null,null,null,null,null,null,null,null,null,null,null,null,null,null,null,null,null,null,null,null,null,null,null,null,null,null,null,null,null,null,null,null,null,null,null,null,null,null,4]
[null,null,null,{"$f":"'08'!D17:K17","v":""}]
[null,null,null,{"$f":"'08'!D18:K18","v":""},null,null,null,null,null,null,null,null,null,null,null,null,null,null,null,null,null,null,null,null,null,null,null,null,null,null,null,null,null,null,null,null,null,null,null,null,null,null,null,5]
[null,null,null,{"$f":"'08'!D19:K19","v":""}]
[null,null,null,{"$f":"'08'!D20:K20","v":""},null,null,null,null,null,null,null,null,null,null,null,null,null,null,null,null,null,null,null,null,null,null,null,null,null,null,null,null,null,null,null,null,null,null,null,null,null,null,null,6]
[null,null,null,{"$f":"'08'!D21:K21","v":""}]
[null,null,null,{"$f":"'08'!D22:K22","v":""},null,null,null,null,null,null,null,null,null,null,null,null,null,null,null,null,null,null,null,null,null,null,null,null,null,null,null,null,null,null,null,null,null,null,null,null,null,null,null,7]
[null,null,null,{"$f":"'08'!D23:K23","v":""}]
[null,null,null,{"$f":"'08'!D24:K24","v":""},null,null,null,null,null,null,null,null,null,null,null,null,null,null,null,null,null,null,null,null,null,null,null,null,null,null,null,null,null,null,null,null,null,null,null,null,null,null,null,8]
[null,null,null,{"$f":"'08'!D25:K25","v":""}]
[null,null,null,{"$f":"'08'!D26:K26","v":""},null,null,null,null,null,null,null,null,null,null,null,null,null,null,null,null,null,null,null,null,null,null,null,null,null,null,null,null,null,null,null,null,null,null,null,null,null,null,null,9]
[null,null,null,{"$f":"'08'!D27:K27","v":""}]
[null,null,null,{"$f":"'08'!D28:K28","v":""},null,null,null,null,null,null,null,null,null,null,null,null,null,null,null,null,null,null,null,null,null,null,null,null,null,null,null,null,null,null,null,null,null,null,null,null,null,null,null,10]
[null,null,null,{"$f":"'08'!D29:K29","v":""}]
[null,null,null,{"$f":"'01'!D30:K30","v":"Ferien NDS | HB"},null,null,null,null,null,null,null,null,null,null,null,null,null,null,null,null,null,null,null,null,null,null,null,null,null,null,null,null,null,null,null,null,null,null,null,null,null,null,null,11]
[null,null,null,{"$f":"'01'!D31:K31","v":"Ferien HH"}]
[null,null,null,{"$f":"'01'!D32:K32","v":"Ferien SH"},null,null,null,null,null,null,null,null,null,null,null,null,null,null,null,null,null,null,null,null,null,null,null,null,null,null,null,null,null,null,null,null,null,null,null,null,null,null,null,12]
[null,null,null,{"$f":"'01'!D33:K33","v":"Ferien NRW"}]

{"sheet":"10","index":10,"n_rows":33,"n_cols":44,"rows_kept":33,"cut":false,"hidden":false,"merged":[[29,43,30,44],[30,3,30,10],[31,3,31,10],[31,43,32,44],[32,3,32,10],[25,43,26,44],[26,3,26,10],[27,3,27,10],[27,43,28,44],[28,3,28,10],[21,43,22,44],[22,3,22,10],[23,3,23,10],[23,43,24,44],[24,3,24,10],[17,43,18,44],[18,3,18,10],[19,3,19,10],[19,43,20,44],[20,3,20,10],[13,43,14,44],[14,3,14,10],[15,3,15,10],[15,43,16,44],[16,3,16,10],[9,43,10,44],[10,3,10,10],[11,3,11,10],[11,43,12,44],[12,3,12,10],[1,27,2,31],[1,32,2,36],[1,37,2,42],[1,43,2,44],[3,43,8,44],[4,1,32,2],[4,4,6,11],[4,12,6,15],[4,17,6,41],[7,6,8,10],[9,3,9,10],[13,3,13,10],[17,3,17,10],[21,3,21,10],[25,3,25,10],[29,3,29,10],[1,22,2,26],[1,1,2,9],[1,10,2,14],[1,15,2,17],[1,18,2,19],[1,20,2,21]]}
[]
[null,null,null,null,null,null,null,null,null,null,null,null,null,null,null,null,null,null,null,null,null,null,"sonstiges",null,null,null,null,"Seminar",null,null,null,null,"V A Z",null,null,null,null,"Urlaub"]
[]
[]
[null,null,null,null,"Oktober",null,null,null,null,null,null,null,{"$f":"UPTbankzeit.de!AN11","v":2026},null,null,null,null,{"$f":"IF(UPTbankzeit.de!AN15=\"\",\"\",UPTbankzeit.de!AN15)","v":"Bitte Teamnamen eingeben"}]
[]
[]
[null,null,null,null,null,null,"Name",null,null,null,null,1,2,3,4,5,6,7,8,9,10,11,12,13,14,15,16,17,18,19,20,21,22,23,24,25,26,27,28,29,30,31]
[null,null,null,null,null,null,null,null,null,null,null,"Do","Fr","Sa","So","Mo","Di","Mi","Do","Fr","Sa","So","Mo","Di","Mi","Do","Fr","Sa","So","Mo","Di","Mi","Do","Fr","Sa","So","Mo","Di","Mi","Do","Fr","Sa"]
[null,null,null,{"$f":"'09'!D10:K10","v":"Urlaubsreif, Trude"},null,null,null,null,null,null,null,null,null,null,null,null,null,null,null,null,null,null,null,null,null,null,null,null,null,null,null,null,null,null,null,null,null,null,null,null,null,null,null,1]
[null,null,null,{"$f":"'09'!D11:K11","v":""}]
[null,null,null,{"$f":"'09'!D12:K12","v":""},null,null,null,null,null,null,null,null,null,null,null,null,null,null,null,null,null,null,null,null,null,null,null,null,null,null,null,null,null,null,null,null,null,null,null,null,null,null,null,2]
[null,null,null,{"$f":"'09'!D13:K13","v":""}]
[null,null,null,{"$f":"'09'!D14:K14","v":""},null,null,null,null,null,null,null,null,null,null,null,null,null,null,null,null,null,null,null,null,null,null,null,null,null,null,null,null,null,null,null,null,null,null,null,null,null,null,null,3]
[null,null,null,{"$f":"'09'!D15:K15","v":""}]
[null,null,null,{"$f":"'09'!D16:K16","v":""},null,null,null,null,null,null,null,null,null,null,null,null,null,null,null,null,null,null,null,null,null,null,null,null,null,null,null,null,null,null,null,null,null,null,null,null,null,null,null,4]
[null,null,null,{"$f":"'09'!D17:K17","v":""}]
[null,null,null,{"$f":"'09'!D18:K18","v":""},null,null,null,null,null,null,null,null,null,null,null,null,null,null,null,null,null,null,null,null,null,null,null,null,null,null,null,null,null,null,null,null,null,null,null,null,null,null,null,5]
[null,null,null,{"$f":"'09'!D19:K19","v":""}]
[null,null,null,{"$f":"'09'!D20:K20","v":""},null,null,null,null,null,null,null,null,null,null,null,null,null,null,null,null,null,null,null,null,null,null,null,null,null,null,null,null,null,null,null,null,null,null,null,null,null,null,null,6]
[null,null,null,{"$f":"'09'!D21:K21","v":""}]
[null,null,null,{"$f":"'09'!D22:K22","v":""},null,null,null,null,null,null,null,null,null,null,null,null,null,null,null,null,null,null,null,null,null,null,null,null,null,null,null,null,null,null,null,null,null,null,null,null,null,null,null,7]
[null,null,null,{"$f":"'09'!D23:K23","v":""}]
[null,null,null,{"$f":"'09'!D24:K24","v":""},null,null,null,null,null,null,null,null,null,null,null,null,null,null,null,null,null,null,null,null,null,null,null,null,null,null,null,null,null,null,null,null,null,null,null,null,null,null,null,8]
[null,null,null,{"$f":"'09'!D25:K25","v":""}]
[null,null,null,{"$f":"'09'!D26:K26","v":""},null,null,null,null,null,null,null,null,null,null,null,null,null,null,null,null,null,null,null,null,null,null,null,null,null,null,null,null,null,null,null,null,null,null,null,null,null,null,null,9]
[null,null,null,{"$f":"'09'!D27:K27","v":""}]
[null,null,null,{"$f":"'09'!D28:K28","v":""},null,null,null,null,null,null,null,null,null,null,null,null,null,null,null,null,null,null,null,null,null,null,null,null,null,null,null,null,null,null,null,null,null,null,null,null,null,null,null,10]
[null,null,null,{"$f":"'09'!D29:K29","v":""}]
[null,null,null,{"$f":"'01'!D30:K30","v":"Ferien NDS | HB"},null,null,null,null,null,null,null,null,null,null,null,null,null,null,null,null,null,null,null,null,null,null,null,null,null,null,null,null,null,null,null,null,null,null,null,null,null,null,null,11]
[null,null,null,{"$f":"'01'!D31:K31","v":"Ferien HH"}]
[null,null,null,{"$f":"'01'!D32:K32","v":"Ferien SH"},null,null,null,null,null,null,null,null,null,null,null,null,null,null,null,null,null,null,null,null,null,null,null,null,null,null,null,null,null,null,null,null,null,null,null,null,null,null,null,12]
[null,null,null,{"$f":"'01'!D33:K33","v":"Ferien NRW"}]

{"sheet":"11","index":11,"n_rows":33,"n_cols":44,"rows_kept":33,"cut":false,"hidden":false,"merged":[[29,43,30,44],[30,3,30,10],[31,3,31,10],[31,43,32,44],[32,3,32,10],[25,43,26,44],[26,3,26,10],[27,3,27,10],[27,43,28,44],[28,3,28,10],[21,43,22,44],[22,3,22,10],[23,3,23,10],[23,43,24,44],[24,3,24,10],[17,43,18,44],[18,3,18,10],[19,3,19,10],[19,43,20,44],[20,3,20,10],[13,43,14,44],[14,3,14,10],[15,3,15,10],[15,43,16,44],[16,3,16,10],[9,43,10,44],[10,3,10,10],[11,3,11,10],[11,43,12,44],[12,3,12,10],[1,27,2,31],[1,32,2,36],[1,37,2,42],[1,43,2,44],[3,43,8,44],[4,1,32,2],[4,4,6,11],[4,12,6,15],[4,17,6,41],[7,6,8,10],[9,3,9,10],[13,3,13,10],[17,3,17,10],[21,3,21,10],[25,3,25,10],[29,3,29,10],[1,22,2,26],[1,1,2,9],[1,10,2,14],[1,15,2,17],[1,18,2,19],[1,20,2,21]]}
[]
[null,null,null,null,null,null,null,null,null,null,null,null,null,null,null,null,null,null,null,null,null,null,"sonstiges",null,null,null,null,"Seminar",null,null,null,null,"V A Z",null,null,null,null,"Urlaub"]
[]
[]
[null,null,null,null,"November",null,null,null,null,null,null,null,{"$f":"UPTbankzeit.de!AN11","v":2026},null,null,null,null,{"$f":"IF(UPTbankzeit.de!AN15=\"\",\"\",UPTbankzeit.de!AN15)","v":"Bitte Teamnamen eingeben"}]
[]
[]
[null,null,null,null,null,null,"Name",null,null,null,null,1,2,3,4,5,6,7,8,9,10,11,12,13,14,15,16,17,18,19,20,21,22,23,24,25,26,27,28,29,30]
[null,null,null,null,null,null,null,null,null,null,null,"So","Mo","Di","Mi","Do","Fr","Sa","So","Mo","Di","Mi","Do","Fr","Sa","So","Mo","Di","Mi","Do","Fr","Sa","So","Mo","Di","Mi","Do","Fr","Sa","So","Mo"]
[null,null,null,{"$f":"'10'!D10:K10","v":"Urlaubsreif, Trude"},null,null,null,null,null,null,null,null,null,null,null,null,null,null,null,null,null,null,null,null,null,null,null,null,null,null,null,null,null,null,null,null,null,null,null,null,null,null,null,1]
[null,null,null,{"$f":"'10'!D11:K11","v":""}]
[null,null,null,{"$f":"'10'!D12:K12","v":""},null,null,null,null,null,null,null,null,null,null,null,null,null,null,null,null,null,null,null,null,null,null,null,null,null,null,null,null,null,null,null,null,null,null,null,null,null,null,null,2]
[null,null,null,{"$f":"'10'!D13:K13","v":""}]
[null,null,null,{"$f":"'10'!D14:K14","v":""},null,null,null,null,null,null,null,null,null,null,null,null,null,null,null,null,null,null,null,null,null,null,null,null,null,null,null,null,null,null,null,null,null,null,null,null,null,null,null,3]
[null,null,null,{"$f":"'10'!D15:K15","v":""}]
[null,null,null,{"$f":"'10'!D16:K16","v":""},null,null,null,null,null,null,null,null,null,null,null,null,null,null,null,null,null,null,null,null,null,null,null,null,null,null,null,null,null,null,null,null,null,null,null,null,null,null,null,4]
[null,null,null,{"$f":"'10'!D17:K17","v":""}]
[null,null,null,{"$f":"'10'!D18:K18","v":""},null,null,null,null,null,null,null,null,null,null,null,null,null,null,null,null,null,null,null,null,null,null,null,null,null,null,null,null,null,null,null,null,null,null,null,null,null,null,null,5]
[null,null,null,{"$f":"'10'!D19:K19","v":""}]
[null,null,null,{"$f":"'10'!D20:K20","v":""},null,null,null,null,null,null,null,null,null,null,null,null,null,null,null,null,null,null,null,null,null,null,null,null,null,null,null,null,null,null,null,null,null,null,null,null,null,null,null,6]
[null,null,null,{"$f":"'10'!D21:K21","v":""}]
[null,null,null,{"$f":"'10'!D22:K22","v":""},null,null,null,null,null,null,null,null,null,null,null,null,null,null,null,null,null,null,null,null,null,null,null,null,null,null,null,null,null,null,null,null,null,null,null,null,null,null,null,7]
[null,null,null,{"$f":"'10'!D23:K23","v":""}]
[null,null,null,{"$f":"'10'!D24:K24","v":""},null,null,null,null,null,null,null,null,null,null,null,null,null,null,null,null,null,null,null,null,null,null,null,null,null,null,null,null,null,null,null,null,null,null,null,null,null,null,null,8]
[null,null,null,{"$f":"'10'!D25:K25","v":""}]
[null,null,null,{"$f":"'10'!D26:K26","v":""},null,null,null,null,null,null,null,null,null,null,null,null,null,null,null,null,null,null,null,null,null,null,null,null,null,null,null,null,null,null,null,null,null,null,null,null,null,null,null,9]
[null,null,null,{"$f":"'10'!D27:K27","v":""}]
[null,null,null,{"$f":"'10'!D28:K28","v":""},null,null,null,null,null,null,null,null,null,null,null,null,null,null,null,null,null,null,null,null,null,null,null,null,null,null,null,null,null,null,null,null,null,null,null,null,null,null,null,10]
[null,null,null,{"$f":"'10'!D29:K29","v":""}]
[null,null,null,{"$f":"'01'!D30:K30","v":"Ferien NDS | HB"},null,null,null,null,null,null,null,null,null,null,null,null,null,null,null,null,null,null,null,null,null,null,null,null,null,null,null,null,null,null,null,null,null,null,null,null,null,null,null,11]
[null,null,null,{"$f":"'01'!D31:K31","v":"Ferien HH"}]
[null,null,null,{"$f":"'01'!D32:K32","v":"Ferien SH"},null,null,null,null,null,null,null,null,null,null,null,null,null,null,null,null,null,null,null,null,null,null,null,null,null,null,null,null,null,null,null,null,null,null,null,null,null,null,null,12]
[null,null,null,{"$f":"'01'!D33:K33","v":"Ferien NRW"}]

{"sheet":"12","index":12,"n_rows":33,"n_cols":44,"rows_kept":33,"cut":false,"hidden":false,"merged":[[29,43,30,44],[30,3,30,10],[31,3,31,10],[31,43,32,44],[32,3,32,10],[25,43,26,44],[26,3,26,10],[27,3,27,10],[27,43,28,44],[28,3,28,10],[21,43,22,44],[22,3,22,10],[23,3,23,10],[23,43,24,44],[24,3,24,10],[17,43,18,44],[18,3,18,10],[19,3,19,10],[19,43,20,44],[20,3,20,10],[13,43,14,44],[14,3,14,10],[15,3,15,10],[15,43,16,44],[16,3,16,10],[9,43,10,44],[10,3,10,10],[11,3,11,10],[11,43,12,44],[12,3,12,10],[1,27,2,31],[1,32,2,36],[1,37,2,42],[1,43,2,44],[3,43,8,44],[4,1,32,2],[4,4,6,11],[4,12,6,15],[4,17,6,41],[7,6,8,10],[9,3,9,10],[13,3,13,10],[17,3,17,10],[21,3,21,10],[25,3,25,10],[29,3,29,10],[1,15,2,17],[1,18,2,19],[1,20,2,21],[1,22,2,26],[1,1,2,14]]}
[]
[null,null,null,null,null,null,null,null,null,null,null,null,null,null,null,null,null,null,null,null,null,null,"sonstiges",null,null,null,null,"Seminar",null,null,null,null,"V A Z",null,null,null,null,"Urlaub"]
[]
[]
[null,null,null,null,"Dezember",null,null,null,null,null,null,null,{"$f":"UPTbankzeit.de!AN11","v":2026},null,null,null,null,{"$f":"IF(UPTbankzeit.de!AN15=\"\",\"\",UPTbankzeit.de!AN15)","v":"Bitte Teamnamen eingeben"}]
[]
[]
[null,null,null,null,null,null,"Name",null,null,null,null,1,2,3,4,5,6,7,8,9,10,11,12,13,14,15,16,17,18,19,20,21,22,23,24,25,26,27,28,29,30,31]
[null,null,null,null,null,null,null,null,null,null,null,"Di","Mi","Do","Fr","Sa","So","Mo","Di","Mi","Do","Fr","Sa","So","Mo","Di","Mi","Do","Fr","Sa","So","Mo","Di","Mi","Do","Fr","Sa","So","Mo","Di","Mi","Do"]
[null,null,null,{"$f":"'11'!D10:K10","v":"Urlaubsreif, Trude"},null,null,null,null,null,null,null,null,null,null,null,null,null,null,null,null,null,null,null,null,null,null,null,null,null,null,null,null,null,null,null,null,null,null,null,null,null,null,null,1]
[null,null,null,{"$f":"'11'!D11:K11","v":""}]
[null,null,null,{"$f":"'11'!D12:K12","v":""},null,null,null,null,null,null,null,null,null,null,null,null,null,null,null,null,null,null,null,null,null,null,null,null,null,null,null,null,null,null,null,null,null,null,null,null,null,null,null,2]
[null,null,null,{"$f":"'11'!D13:K13","v":""}]
[null,null,null,{"$f":"'11'!D14:K14","v":""},null,null,null,null,null,null,null,null,null,null,null,null,null,null,null,null,null,null,null,null,null,null,null,null,null,null,null,null,null,null,null,null,null,null,null,null,null,null,null,3]
[null,null,null,{"$f":"'11'!D15:K15","v":""}]
[null,null,null,{"$f":"'11'!D16:K16","v":""},null,null,null,null,null,null,null,null,null,null,null,null,null,null,null,null,null,null,null,null,null,null,null,null,null,null,null,null,null,null,null,null,null,null,null,null,null,null,null,4]
[null,null,null,{"$f":"'11'!D17:K17","v":""}]
[null,null,null,{"$f":"'11'!D18:K18","v":""},null,null,null,null,null,null,null,null,null,null,null,null,null,null,null,null,null,null,null,null,null,null,null,null,null,null,null,null,null,null,null,null,null,null,null,null,null,null,null,5]
[null,null,null,{"$f":"'11'!D19:K19","v":""}]
[null,null,null,{"$f":"'11'!D20:K20","v":""},null,null,null,null,null,null,null,null,null,null,null,null,null,null,null,null,null,null,null,null,null,null,null,null,null,null,null,null,null,null,null,null,null,null,null,null,null,null,null,6]
[null,null,null,{"$f":"'11'!D21:K21","v":""}]
[null,null,null,{"$f":"'11'!D22:K22","v":""},null,null,null,null,null,null,null,null,null,null,null,null,null,null,null,null,null,null,null,null,null,null,null,null,null,null,null,null,null,null,null,null,null,null,null,null,null,null,null,7]
[null,null,null,{"$f":"'11'!D23:K23","v":""}]
[null,null,null,{"$f":"'11'!D24:K24","v":""},null,null,null,null,null,null,null,null,null,null,null,null,null,null,null,null,null,null,null,null,null,null,null,null,null,null,null,null,null,null,null,null,null,null,null,null,null,null,null,8]
[null,null,null,{"$f":"'11'!D25:K25","v":""}]
[null,null,null,{"$f":"'11'!D26:K26","v":""},null,null,null,null,null,null,null,null,null,null,null,null,null,null,null,null,null,null,null,null,null,null,null,null,null,null,null,null,null,null,null,null,null,null,null,null,null,null,null,9]
[null,null,null,{"$f":"'11'!D27:K27","v":""}]
[null,null,null,{"$f":"'11'!D28:K28","v":""},null,null,null,null,null,null,null,null,null,null,null,null,null,null,null,null,null,null,null,null,null,null,null,null,null,null,null,null,null,null,null,null,null,null,null,null,null,null,null,10]
[null,null,null,{"$f":"'11'!D29:K29","v":""}]
[null,null,null,{"$f":"'01'!D30:K30","v":"Ferien NDS | HB"},null,null,null,null,null,null,null,null,null,null,null,null,null,null,null,null,null,null,null,null,null,null,null,null,null,null,null,null,null,null,null,null,null,null,null,null,null,null,null,11]
[null,null,null,{"$f":"'01'!D31:K31","v":"Ferien HH"}]
[null,null,null,{"$f":"'01'!D32:K32","v":"Ferien SH"},null,null,null,null,null,null,null,null,null,null,null,null,null,null,null,null,null,null,null,null,null,null,null,null,null,null,null,null,null,null,null,null,null,null,null,null,null,null,null,12]
[null,null,null,{"$f":"'01'!D33:K33","v":"Ferien NRW"}]